Cogmind - Beta 13 *** ADVENTURER MODE // 2024.04.30 @ 22:19:29 Player: GARGE Result: Self-destructed Performance ------------- Evolutions (2) 1000 Regions Visited (3) 600 Robots Destroyed (18) 90 Value Destroyed (595) 595 Prototype IDs (0) 0 Alien Tech Used (0) 0 Bonus (0) 0 TOTAL SCORE: 2285 Bonus ------- None Cogmind --------- Core Integrity 454/550 Matter 270/300 Energy 33/100 System Corruption 0% Temperature Cool (6) Movement Treading (160) Location -8/Materials Parts ------- > --- POWER (2) -------- (None) > --- PROPULSION (3) --- Light Treads Light Treads > --- UTILITY (4) ------ Heat Sink Weight Redist. System Trap Scanner Signal Interpreter > --- WEAPON (2) ------- EM Pulse Cannon Particle Cannon > --- INVENTORY (5) ---- VTOL Module Cooling System Sensor Array Heavy Assault Rifle Peak State ------------ > --- POWER ------------ Ion Engine Improved Ion Engine > --- PROPULSION ------- Light Treads Light Treads > --- UTILITY ---------- Heat Sink Weight Redist. System Trap Scanner Signal Interpreter > --- WEAPON ----------- EM Pulse Cannon Particle Cannon > --- INVENTORY -------- VTOL Module Cooling System Sensor Array Heavy Assault Rifle [Rating: 17] Favorites ----------- Power Ion Engine Engine Ion Engine Propulsion Hover Unit Treads Light Treads Wheel Wheel Hover Unit Hover Unit Utility Heat Sink Device Heat Sink Processor Signal Interpreter Weapon EM Pulse Gun Energy Gun EM Pulse Gun Energy Cannon Particle Cannon Ballistic Gun Heavy Assault Rifle Build | -11 -10 -9 -8 ------- Run | Yrd Mat Mat Mat Slots Evolved 4 | . . 2 2 Power 1 | . . 1 . Propulsion 1 | . . . 1 Utility 2 | . . 1 1 Weapon . | . . . . Parts Attached 21 | 5 4 7 5 Power 5 | 1 . 3 1 Engine 5 | 1 . 3 1 Core . | . . . . Reactor . | . . . . Propulsion 6 | 2 2 . 2 Treads 2 | . . . 2 Leg . | . . . . Wheel 2 | 2 . . . Hover 2 | . 2 . . Flight . | . . . . Utility 5 | . 2 2 1 Device 4 | . 1 2 1 Storage . | . . . . Processor 1 | . 1 . . Hackware . | . . . . Protection . | . . . . Artifact . | . . . . Weapon 5 | 2 . 2 1 Energy Gun 1 | 1 . . . Energy Cannon 2 | . . 1 1 Ballistic Gun 2 | 1 . 1 . Ballistic Cannon . | . . . . Launcher . | . . . . Special Weapon . | . . . . Impact Weapon . | . . . . Slashing Weapon . | . . . . Piercing Weapon . | . . . . Special Melee Weapon . | . . . . Unidentified Prototypes . | . . . . Parts Lost 4 | . . . 4 Power 2 | . . . 2 Propulsion 2 | . . . 2 Utility . | . . . . Weapon . | . . . . Highest Loss Streak 2 | . . . 2 To Critical Strikes . | . . . . Average Slot Usage (%) 90 | . 96 90 84 Engine 15 | . 13 16 17 Treads 1 | . . . 4 Wheel 6 | . 16 . . Hover 14 | . 10 22 11 Device 19 | . 14 17 27 Processor 11 | . 12 11 9 Energy Gun 9 | . 14 12 . Energy Cannon 3 | . . 1 10 Ballistic Gun 8 | . 12 7 4 Naked Turns . | . . . . Heaviest Build 25 | 7 8 18 25 Greatest Support 46 | 20 20 18 46 Greatest Overweight (x) 1 | . 1 . 1 Average Overweight (x) . | . . . . Largest Inventory Capacity 5 | 5 5 5 5 Average Capacity 5 | 5 5 5 5 Most Carried 5 | 3 5 5 5 Average Carried 3 | 1 3 4 3 Final Capacity 5 | 5 5 5 5 Final Carried 4 | 2 4 4 4 Class Distribution -------------------- 94% | Mutant 5% | Scavenger-Mutant Dominant Class ---------------- Mutant | -10/Materials Mutant | -9/Materials Mutant | -8/Materials Resources | -11 -10 -9 -8 ----------- Run | Yrd Mat Mat Mat Matter Collected 405 | 217 86 92 10 Remotely . | . . . . Salvage Created 819 | 39 86 408 286 Parts 45 | 3 6 24 12 Haulers Intercepted . | . . . . Recyclers Shooed . | . . . . Parts Field Recycled . | . . . . Retrieved Matter . | . . . . Parts Self-Destructed . | . . . . Prevented . | . . . . Kills | -11 -10 -9 -8 ------- Run | Yrd Mat Mat Mat Combat Hostiles Destroyed 12 | 1 1 5 5 Guns 5 | 1 1 3 . Cannons 5 | . . 1 4 AOE 1 | . . 1 . Classes Destroyed 6 | 1 1 4 . Recycler 1 | . . 1 . Operator 1 | . . 1 . Watcher 4 | . 2 2 . Grunt 7 | 1 1 1 4 Brawler 1 | . . 1 . Sentry 4 | . . 3 1 Best Kill Streak 4 | 1 2 4 4 Combat Bots Only 4 | 1 1 2 4 Max Kills in Single Turn 1 | 1 1 1 1 Gunslinging . | . . . . Exploded 1 | . . 1 . Melee . | . . . . Uniques/NPCs Destroyed . | . . . . Combat | -11 -10 -9 -8 -------- Run | Yrd Mat Mat Mat Hostile Shots Fired 81 | 2 7 17 55 Missed 25 | 1 2 8 14 Damage Taken 673 | 9 42 105 517 Core 110 | . . 14 96 Absorbed by Shields . | . . . . Ignored by Resistances 199 | 3 14 30 152 Core Remaining (%) 98 | 100 100 96 . Volleys Fired 53 | 1 10 18 24 Largest 2 | 1 2 2 2 Hottest 131 | 20 60 91 131 Shots Fired 85 | 1 20 36 28 Gun 55 | 1 20 34 . Cannon 30 | . . 2 28 Launcher . | . . . . Special . | . . . . Kinetic 25 | 1 10 14 . Thermal 30 | . . 6 24 Explosive . | . . . . Electromagnetic 30 | . 10 16 4 Robot Hit Streak 15 | 1 6 15 8 Robot Miss Streak 3 | . 3 2 1 Penetration Max . | . . . . Secondary Targets . | . . . . Shots Hit Robots 53 | 1 10 23 19 Core Hits 25 | 1 4 11 9 Critical Kills 2 | . . 1 1 Critical Parts Destroyed . | . . . . Critical Strikes 3 | . . 2 1 Meltdown 1 | . . . 1 Destroy 1 | . . 1 . Corrupt 1 | . . 1 . Melee Attacks . | . . . . Impact . | . . . . Slashing . | . . . . Piercing . | . . . . Sneak Attacks . | . . . . Combat Hostiles . | . . . . Follow-up Attacks . | . . . . Damage Inflicted 1065 | 15 139 435 476 Guns 456 | 15 139 302 . Cannons 516 | . . 40 476 Explosions 93 | . . 93 . Melee . | . . . . Ramming . | . . . . Kinetic 189 | 15 49 125 . Thermal 546 | . . 153 393 Explosive . | . . . . Electromagnetic 330 | . 90 157 83 Impact . | . . . . Slashing . | . . . . Piercing . | . . . . Highest Corruption . | . . . . Average Corruption . | . . . . Corruption Purged . | . . . . Corruption Blocked . | . . . . Overload Shots . | . . . . Overflow Damage . | . . . . Projectiles . | . . . . Explosions . | . . . . Melee . | . . . . Knockbacks . | . . . . Impact . | . . . . Kinetic . | . . . . Secondary . | . . . . Self-Inflicted Damage . | . . . . Shots . | . . . . Rammed . | . . . . Targets Rammed . | . . . . Kicked . | . . . . Crushed . | . . . . Highest Temperature 385 | . . 24 385 Average Temperature 98 | . . 9 111 Received Heat Transfer 477 | 6 30 36 405 Effects 1 | . . . 1 Shutdowns 1 | . . . 1 Siege Activations . | . . . . Robots Corrupted . | . . . . Combat Hostiles . | . . . . Parts Fried . | . . . . Impact Corruptions . | . . . . Robots Melted 1 | . . . 1 Combat Hostiles 1 | . . . 1 Parts Melted . | . . . . Heat Transferred 1001 | . . 298 703 Parts Sabotaged . | . . . . Parts Stolen . | . . . . Parts Stripped . | . . . . Power Chain Reactions 2 | . . 2 . Alert | -11 -10 -9 -8 ------- Run | Yrd Mat Mat Mat Peak Influence 305 | 20 82 305 258 Initial 109 | . 11 29 109 Average 100 | 2 40 145 166 Maximum Alert Level 1 | . . 1 1 Low Security (%) 80 | 100 100 64 66 Level 1 19 | . . 35 33 Level 2 . | . . . . Level 3 . | . . . . Level 4 . | . . . . Level 5 . | . . . . High Security . | . . . . Max Security . | . . . . Squads Dispatched 4 | . 2 1 1 Investigation 3 | . 2 . 1 Extermination . | . . . . Reinforcement 1 | . . 1 . Assault . | . . . . Garrison . | . . . . Intercept . | . . . . Searches Triggered . | . . . . Construction Impeded . | . . . . Haulers Reinforced . | . . . . Active Scanning Responses . | . . . . Cargo Convoy Interrupts . | . . . . Stealth | -11 -10 -9 -8 --------- Run | Yrd Mat Mat Mat Distress Signals 4 | . . 3 1 Communications Jammed . | . . . . Distress Signals . | . . . . Times Spotted 25 | 1 3 9 12 Peak Tracking Total 5 | 1 2 4 5 Tactical Retreats 2 | . . 1 1 Traps | -11 -10 -9 -8 ------- Run | Yrd Mat Mat Mat Traps Triggered 2 | . 2 . . Indirectly . | . . . . Trap Hack Attempts . | . . . . Triggered . | . . . . Disarmed . | . . . . Reprogrammed . | . . . . Reused . | . . . . Traps Extracted . | . . . . Installed . | . . . . Triggered . | . . . . Machines | -11 -10 -9 -8 ---------- Run | Yrd Mat Mat Mat Machines Disabled . | . . . . Max in Single Turn . | . . . . Machines Repaired . | . . . . Machines Dismantled . | . . . . Machines Sabotaged . | . . . . Overloaded Fab Kills . | . . . . Hacking | -11 -10 -9 -8 --------- Run | Yrd Mat Mat Mat Machines Accessed 10 | . 5 1 4 Terminals 7 | . 3 . 4 Fabricators . | . . . . Repair Stations 1 | . 1 . . Recycling Units 2 | . 1 1 . Scanalyzers . | . . . . Garrison Access . | . . . . Total Hacks 31 | . 15 6 10 Successful 22 | . 12 6 4 Failed 9 | . 3 . 6 Catastrophic 2 | . . . 2 Database Lockouts . | . . . . Manual 3 | . . . 3 Terminals 20 | . 10 . 10 Fabricators . | . . . . Repair Stations 1 | . 1 . . Recycling Units 10 | . 4 6 . Scanalyzers . | . . . . Garrison Access . | . . . . Terminal Hacks 13 | . 9 . 4 Record 9 | . 7 . 2 Alert Level 1 | . 1 . . Reinforcement Status 1 | . . . 1 Recall Reinforcements 1 | . . . 1 Hauler Manifests 1 | . 1 . . Fabricator Hacks . | . . . . Repair Station Hacks 1 | . 1 . . Refit 1 | . 1 . . Recycling Unit Hacks 8 | . 2 6 . Recycle Component 2 | . 1 1 . Process 2 | . . 2 . Report Inventory 3 | . 1 2 . Retrieve Matter 1 | . . 1 . Scanalyzer . | . . . . Garrison Access Hacks . | . . . . Unauthorized Hacks . | . . . . Terminals . | . . . . Fabricators . | . . . . Repair Stations . | . . . . Recycling Units . | . . . . Scanalyzers . | . . . . Garrison Access . | . . . . Data Cores Recovered 1 | . . 1 . Used . | . . . . Hacking Detections 6 | . 3 1 2 Full Trace Events 3 | . 2 . 1 Feedback Events . | . . . . Feedback Blocked . | . . . . Robot Schematics Acquired . | . . . . Robots Built . | . . . . Authchips . | . . . . Time . | . . . . Total Robot Build Rating . | . . . . Part Schematics Acquired . | . . . . Parts Built . | . . . . Authchips . | . . . . Time . | . . . . Total Part Build Rating . | . . . . Parts Repaired . | . . . . Time . | . . . . Parts Recycled 2 | . 1 1 . Recycled Matter 45 | . . 45 . Retrieved Matter 45 | . . 45 . Retrieved Components . | . . . . Parts Scanalyzed . | . . . . Part Schematics Acquired . | . . . . Parts Damaged . | . . . . Bothacking | -11 -10 -9 -8 ------------ Run | Yrd Mat Mat Mat Used RIF Installer . | . . . . Robots Hacked . | . . . . Non-combat . | . . . . Combat . | . . . . Robot Hacks Applied . | . . . . Relay Couplers Released . | . . . . Fabnet Peak Effective % . | . . . . Robots Rewired . | . . . . Allies Hacked . | . . . . Hacks Repelled . | . . . . Allies | -11 -10 -9 -8 -------- Run | Yrd Mat Mat Mat Total Allies . | . . . . Largest Group . | . . . . Highest-Rated Group . | . . . . Highest-Rated Ally . | . . . . Total Orders . | . . . . Ally Attacks . | . . . . Total Damage . | . . . . Kills . | . . . . Allies Corrupted . | . . . . Allies Melted . | . . . . Intel | -11 -10 -9 -8 ------- Run | Yrd Mat Mat Mat Robot Analysis Total . | . . . . Derelict Logs Recovered . | . . . . Drone Launches . | . . . . Drone Recoveries . | . . . . Exploration | -11 -10 -9 -8 ------------- Run | Yrd Mat Mat Mat Turns Passed 826 | 96 270 234 226 Spaces Moved 797 | 96 321 236 144 Core 35 | 17 . . 18 Treads 13 | . . . 13 Legs . | . . . . Wheels 253 | 79 174 . . Hover 496 | . 147 236 113 Flight . | . . . . Fastest Speed 50 | 50 56 56 56 Average Speed 74 | 74 69 56 113 Slowest Speed 160 | 80 120 56 160 Overloaded Moves . | . . . . Propulsion Burnouts . | . . . . Robots Hopped . | . . . . Cave-ins Triggered . | . . . . Exploration Rate (%) 25 | 5 51 26 21 Regions Visited 3 Branch Regions . Pre-discovered Areas . | . . . . Known Exits Taken 2 | . 1 1 . Unknown Exits Taken 1 | 1 . . . Scrap Searched . | . . . . Spaces Dug . | . . . . Terrain Destroyed 6 | . . 6 . Melee . | . . . . Projectile . | . . . . AOE 6 | . . 6 . Terrain Rammed . | . . . . Walls Destroyed . | . . . . Machines Disabled . | . . . . Actions | -11 -10 -9 -8 --------- Run | Yrd Mat Mat Mat Total 947 | 119 349 302 177 Wait 43 | 11 2 29 1 Move 794 | 95 320 235 144 Hop . | . . . . Pick Up 22 | 7 8 6 1 Fast Attach 7 | . 2 3 2 Attach 11 | 5 2 2 2 Detach 1 | . . . 1 Swap 3 | . . 2 1 Drop 13 | . 5 7 1 Fire 53 | 1 10 18 24 Melee . | . . . . Ram . | . . . . Kick . | . . . . Crush . | . . . . Escape Stasis . | . . . . Rewire . | . . . . Trap . | . . . . Miscellaneous . | . . . . Route ------- -11/Scrapyard -10/Materials -9/Materials -8/Materials History --------- Turn | Location | Event 2 | -11/Scrapyard | Met Revision 17 81 | -11/Scrapyard | Discovered new exit (range 8) 97 | -11/Scrapyard | Entered Materials 302 | -10/Materials | Build established: Mutant 316 | -10/Materials | Discovered new exit (range 15) 366 | -10/Materials | Identified exit to Materials 367 | -10/Materials | Entered another Materials area 367 | -9/Materials | Evolved 2 slots: Power x1, Utility x1 593 | -9/Materials | Discovered new exit (range 5) 600 | -9/Materials | Identified exit to Materials 601 | -9/Materials | Entered another Materials area 601 | -8/Materials | Evolved 2 slots: Propulsion x1, Utility x1 827 | -8/Materials | Self-destructed Last Messages --------------- 00776_ Acquired Lgt. Treads. 00777_ K-01 Serf collects debris. 00779_ Acquired Lgt. Treads. 00779_ R-06 Scavenger collects Lgt. Nuclear Core. 00780_ K-01 Serf collects debris. 00782_ Dropped Ion Engine. 00783_ K-01 Serf collects debris. 00788_ R-06 Scavenger collects Aluminum Leg. 00789_ K-01 Serf collects debris. 00797_ Critical hit (Burn: +37). 00800_ K-01 Serf collects debris. 00800_ Critical hit (Burn: +37). 00804_ K-01 Serf collects debris. 00805_ Power failure, Ion Engine shutdown. 00809_ K-01 Serf collects debris. 00810_ Imp. Ion Engine destroyed. 00814_ K-01 Serf collects debris. 00823_ Ion Engine destroyed. 00824_ G-50 Soldier destroyed. 00824_ W-25 Informer distress signal alerts nearby ally. Map ----- +----------------------------------------------------+ | ?????????????????????????????????????????????????? | | ?????????????????????????????????????????????????? | | ?????????????????????????????????????????????????? | | ?????????????????????????????????????????????????? | | ?????????????????????????????????????????????????? | | ?????????????????????????????????????????????????? | | ??????????????????????????????????????????#######? | | ????????????????????????????????########### ## | | ????????????????????????????????# | | ????????????????????????????????# | | ????????????????????????????????# | | ????????????????????????????????+ ####### ## | | ????????????????????????????????# #?????#######? | | ???????????????? ??????########## #????????????? | | ???????????????#+####??# #????????????? | | ??????????????? #??# #????????????? | | ???????????????? #??# "" ######???????? | | ???????????????? #??# " "" ??????? | | ????????????????# #??# """ T" ######???????? | | ????????????????# #??# """ "" #????????????? | | ????????????????# #??# """ "" #????????????? | | ????????????????# #??# "" #????????????? | | ????????????????# #??# """ #????????????? | | ????????????????# #??# "" ] ! #????????????? | | ???????????????## ##?# "" ]!! ######???????? | | ???????????????# ### @ "% ]! ???? | | ???????????????# [ !g ! ??? | | ???????????????# *% %%* %aa ???? | | ???????????????# ! a w##################???? | | ???????????????# ###+####????????????????????? | | ???????????????##### # ??????????????????????? | | ???????????????????# # """ ?????????????????????? | | ???????????????????# # "T """???????????????????? | | ???????????????????# # """ """???????????????????? | | ??????????????????? # """???????????????????? | | ???????????????????# # ???????????????????? | | ???????????????????? #? ????????????????????? | | ???????????????????? #??? ????????????????????? | | ???????????????????? #???#??#????????????????????? | | ???????????????????? ????????????????????????????? | | ???????????????????? ????????????????????????????? | | ???????????????????? ????????????????????????????? | | ?????????????????????????????????????????????????? | | ?????????????????????????????????????????????????? | | ?????????????????????????????????????????????????? | | ?????????????????????????????????????????????????? | | ?????????????????????????????????????????????????? | | ?????????????????????????????????????????????????? | | ?????????????????????????????????????????????????? | | ?????????????????????????????????????????????????? | +----------------------------------------------------+ Best States ------------- Heat Dissipation 41 Energy Generation 17 Energy Capacity 415 Matter Stores 300 Matter Capacity 300 Sight Range 16 Terrain Scan Density 10 Additional Mass Support 6 Resistance: KI 20 Resistance: TH 20 Resistance: EX 20 Resistance: EM 20 Resistance: I 20 Resistance: S 20 Resistance: P 20 Evasion (%) 53 Recoil Reduction 2 Offensive Hacking 10 Item Schematics ----------------- None Robot Schematics ------------------ None Fabricated ------------ Nothing Alien Tech Used ----------------- None Achievements -------------- Shopping List Challenges ------------ None Game ------ Seed ContainmentSpacefoldAnalyzer Manual? 0 Play Time 00:29:21 Cumulative 2.2 hours Start 2024.04.30 @ 21:42:41 End 2024.04.30 @ 22:19:29 Sessions 1 Manual Loads 0 Difficulty Adventurer Special Mode None Game No. 2 Rogue 0 Adventurer 2 Explorer 0 Win Type - Total 0 Types 0/0/0/0/0/0/0/0/0 Lore% 2 Gallery% 5 Achievement% 7 Wizard Run 0 Options --------- Layout 0 ASCII 0 Keyboard 0 Movement Mouse Keybinds 0 Fullscreen 2 Font 18/SmallcapsGlow Map View 76x50 Zoom Use 3% Tactical HUD 1 Map Filters NONE Filters NONE Steam 1 RUN: f0e48cbf-454e-4bdd-a86e-33f287062515